[Event "Titled Tuesday Blitz July 18 Early 2023"]
[White "favesaul"]
[Black "Becerra, Juan David"]
[BlackFideId "4404998"]
[WhiteElo "2433"]
[BlackElo "2562"]
[Result "1-0"]
[Round "8"]
[TimeControl "180+2"]
[Date "2023.07.18"]
[WhiteClock "0:00:07"]
[BlackClock "0:00:00"]
[Board "96"]

1. e4 {[%clk 0:03:00]}  e5 {[%clk 0:02:58]} 2. Nf3 {[%clk 0:03:00]}  Nc6 {[%clk 0:02:58]} 3. Bb5 {[%clk 0:03:01]}  f5 {[%clk 0:02:57]} 4. d3 {[%clk 0:03:00]}  fxe4 {[%clk 0:02:57]} 5. dxe4 {[%clk 0:03:00]}  Nf6 {[%clk 0:02:49]} 6. Nc3 {[%clk 0:03:00]}  d6 {[%clk 0:02:46]} 7. h3 {[%clk 0:02:36]}  Be7 {[%clk 0:02:45]} 8. Be3 {[%clk 0:02:31]}  O-O {[%clk 0:02:44]} 9. Qd3 {[%clk 0:02:29]}  Kh8 {[%clk 0:02:33]} 10. O-O-O {[%clk 0:02:23]}  a6 {[%clk 0:02:16]} 11. Bxc6 {[%clk 0:02:20]}  bxc6 {[%clk 0:02:17]} 12. Qc4 {[%clk 0:02:21]}  Qe8 {[%clk 0:02:17]} 13. Ng5 {[%clk 0:02:08]}  Bd8 {[%clk 0:02:14]} 14. f3 {[%clk 0:01:43]}  Nh5 {[%clk 0:02:01]} 15. h4 {[%clk 0:01:41]}  Nf4 {[%clk 0:01:54]} 16. g3 {[%clk 0:01:30]}  Ne6 {[%clk 0:01:53]} 17. f4 {[%clk 0:01:25]}  exf4 {[%clk 0:01:52]} 18. gxf4 {[%clk 0:01:26]}  Nxf4 {[%clk 0:01:50]} 19. Rdf1 {[%clk 0:01:25]}  d5 {[%clk 0:01:31]} 20. Qa4 {[%clk 0:01:14]}  Ng6 {[%clk 0:01:06]} 21. Bc5 {[%clk 0:01:10]}  Bxg5+ {[%clk 0:00:51]} 22. hxg5 {[%clk 0:01:08]}  Rxf1+ {[%clk 0:00:52]} 23. Rxf1 {[%clk 0:01:08]}  Bh3 {[%clk 0:00:52]} 24. Re1 {[%clk 0:00:52]}  Bd7 {[%clk 0:00:50]} 25. Qa5 {[%clk 0:00:37]}  Qd8 {[%clk 0:00:50]} 26. exd5 {[%clk 0:00:34]}  cxd5 {[%clk 0:00:50]} 27. Kb1 {[%clk 0:00:28]}  c6 {[%clk 0:00:48]} 28. Qb4 {[%clk 0:00:24]}  Qxg5 {[%clk 0:00:47]} 29. Qb7 {[%clk 0:00:24]}  Qd8 {[%clk 0:00:46]} 30. Bd4 {[%clk 0:00:21]}  Qc8 {[%clk 0:00:42]} 31. Qb4 {[%clk 0:00:20]}  c5 {[%clk 0:00:36]} 32. Bxc5 {[%clk 0:00:19]}  Rb8 {[%clk 0:00:35]} 33. Qd4 {[%clk 0:00:19]}  Bf5 {[%clk 0:00:29]} 34. Nxd5 {[%clk 0:00:15]}  h6 {[%clk 0:00:22]} 35. Ne3 {[%clk 0:00:11]}  Qe6 {[%clk 0:00:18]} 36. b3 {[%clk 0:00:08]}  Kh7 {[%clk 0:00:17]} 37. Bb4 {[%clk 0:00:08]}  Rc8 {[%clk 0:00:04]} 38. Bc3 {[%clk 0:00:08]}  Rc7 {[%clk 0:00:03]} 39. Nd5 {[%clk 0:00:08]}  Rd7 {[%clk 0:00:00]} 40. Rxe6 {[%clk 0:00:07]} 1-0


[Site "https://www.chess.com"]

[Event "Titled Tuesday Blitz July 18 Early 2023"]
[White "Buchenau, Frank"]
[Black "Zhang, Eric"]
[WhiteFideId "4604350"]
[BlackFideId "30907667"]
[WhiteElo "2429"]
[BlackElo "2555"]
[Result "1-0"]
[Round "8"]
[TimeControl "180+2"]
[Date "2023.07.18"]
[WhiteClock "0:00:34"]
[BlackClock "0:00:10"]
[Board "97"]

1. e4 {[%clk 0:03:00]}  c5 {[%clk 0:02:59]} 2. Nf3 {[%clk 0:02:59]}  d6 {[%clk 0:03:00]} 3. Bb5+ {[%clk 0:02:58]}  Nd7 {[%clk 0:02:58]} 4. O-O {[%clk 0:02:56]}  g6 {[%clk 0:02:56]} 5. Re1 {[%clk 0:02:55]}  Bg7 {[%clk 0:02:57]} 6. c3 {[%clk 0:02:54]}  a6 {[%clk 0:02:54]} 7. Bf1 {[%clk 0:02:52]}  Ngf6 {[%clk 0:02:51]} 8. d4 {[%clk 0:02:52]}  cxd4 {[%clk 0:02:51]} 9. cxd4 {[%clk 0:02:51]}  O-O {[%clk 0:02:51]} 10. Nc3 {[%clk 0:02:50]}  b5 {[%clk 0:02:51]} 11. e5 {[%clk 0:02:39]}  Ne8 {[%clk 0:02:45]} 12. Bf4 {[%clk 0:02:33]}  Nb6 {[%clk 0:02:36]} 13. h3 {[%clk 0:02:21]}  Bb7 {[%clk 0:02:32]} 14. a4 {[%clk 0:02:06]}  b4 {[%clk 0:02:27]} 15. Ne4 {[%clk 0:02:01]}  Rc8 {[%clk 0:01:53]} 16. a5 {[%clk 0:01:57]}  Nd5 {[%clk 0:01:53]} 17. Bg3 {[%clk 0:01:53]}  Qd7 {[%clk 0:01:39]} 18. Qb3 {[%clk 0:01:46]}  f5 {[%clk 0:01:20]} 19. exf6 {[%clk 0:01:07]}  Nxf6 {[%clk 0:01:14]} 20. Neg5 {[%clk 0:00:55]}  h6 {[%clk 0:00:46]} 21. Ne6 {[%clk 0:00:55]}  Rfe8 {[%clk 0:00:44]} 22. Bd3 {[%clk 0:00:44]}  Kf7 {[%clk 0:00:34]} 23. Nh4 {[%clk 0:00:37]}  g5 {[%clk 0:00:20]} 24. Bg6+ {[%clk 0:00:37]}  Kg8 {[%clk 0:00:20]} 25. Nf5 {[%clk 0:00:36]}  Red8 {[%clk 0:00:10]} 26. Nfxg7 {[%clk 0:00:34]} 1-0


[Site "https://www.chess.com"]

[Event "Titled Tuesday Blitz July 18 Early 2023"]
[White "Rom, Jasper"]
[Black "Lana Rodriguez, David"]
[WhiteFideId "2023733"]
[BlackFideId "2270803"]
[WhiteElo "2418"]
[BlackElo "2554"]
[Result "0-1"]
[Round "8"]
[TimeControl "180+2"]
[Date "2023.07.18"]
[WhiteClock "0:00:00"]
[BlackClock "0:00:19"]
[Board "98"]

1. e4 {[%clk 0:03:00]}  d5 {[%clk 0:02:59]} 2. exd5 {[%clk 0:03:00]}  Qxd5 {[%clk 0:03:00]} 3. Nc3 {[%clk 0:03:00]}  Qa5 {[%clk 0:03:01]} 4. d4 {[%clk 0:03:00]}  Nf6 {[%clk 0:03:01]} 5. Nf3 {[%clk 0:03:00]}  Nc6 {[%clk 0:02:58]} 6. d5 {[%clk 0:02:53]}  Nb4 {[%clk 0:02:57]} 7. Bb5+ {[%clk 0:02:53]}  c6 {[%clk 0:02:57]} 8. dxc6 {[%clk 0:02:53]}  bxc6 {[%clk 0:02:58]} 9. Ba4 {[%clk 0:02:43]}  Bd7 {[%clk 0:02:56]} 10. a3 {[%clk 0:02:41]}  Nbd5 {[%clk 0:02:56]} 11. Bb3 {[%clk 0:02:21]}  Nxc3 {[%clk 0:02:55]} 12. bxc3 {[%clk 0:02:21]}  Bg4 {[%clk 0:02:35]} 13. Bd2 {[%clk 0:02:02]}  e6 {[%clk 0:02:34]} 14. h3 {[%clk 0:02:00]}  Bh5 {[%clk 0:02:33]} 15. g4 {[%clk 0:01:49]}  Bg6 {[%clk 0:02:32]} 16. Nd4 {[%clk 0:01:49]}  Rc8 {[%clk 0:02:12]} 17. Qe2 {[%clk 0:01:47]}  Be7 {[%clk 0:02:07]} 18. h4 {[%clk 0:01:37]}  h5 {[%clk 0:02:04]} 19. f3 {[%clk 0:01:34]}  O-O {[%clk 0:01:53]} 20. g5 {[%clk 0:01:26]}  Nd5 {[%clk 0:01:46]} 21. c4 {[%clk 0:01:24]}  Qb6 {[%clk 0:01:46]} 22. Nxe6 {[%clk 0:01:10]}  fxe6 {[%clk 0:01:47]} 23. cxd5 {[%clk 0:01:08]}  exd5 {[%clk 0:01:46]} 24. Kd1 {[%clk 0:00:39]}  Bc5 {[%clk 0:01:33]} 25. f4 {[%clk 0:00:27]}  Rce8 {[%clk 0:01:30]} 26. Qh2 {[%clk 0:00:24]}  Be3 {[%clk 0:01:24]} 27. Rf1 {[%clk 0:00:19]}  Qd4 {[%clk 0:01:21]} 28. Rb1 {[%clk 0:00:18]}  Bf5 {[%clk 0:01:15]} 29. Kc1 {[%clk 0:00:17]}  Bh3 {[%clk 0:01:02]} 30. Rf3 {[%clk 0:00:12]}  Bg4 {[%clk 0:00:57]} 31. Bxe3 {[%clk 0:00:10]}  Rxe3 {[%clk 0:00:58]} 32. Rxe3 {[%clk 0:00:10]}  Qxe3+ {[%clk 0:00:59]} 33. Kb2 {[%clk 0:00:10]}  Qd4+ {[%clk 0:00:54]} 34. Ka2 {[%clk 0:00:09]}  Rxf4 {[%clk 0:00:52]} 35. Re1 {[%clk 0:00:09]}  Re4 {[%clk 0:00:46]} 36. Rf1 {[%clk 0:00:07]}  Qe5 {[%clk 0:00:42]} 37. Qf2 {[%clk 0:00:05]}  Kh7 {[%clk 0:00:32]} 38. Qf7 {[%clk 0:00:04]}  Qe6 {[%clk 0:00:29]} 39. Qf8 {[%clk 0:00:00]}  Qe7 {[%clk 0:00:19]} 0-1


[Site "https://www.chess.com"]

[Event "Titled Tuesday Blitz July 18 Early 2023"]
[White "Arencibia Monduy, Antonio"]
[Black "Bazilius, Augustinas"]
[WhiteFideId "3507939"]
[BlackFideId "12832251"]
[WhiteElo "2550"]
[BlackElo "2415"]
[Result "0-1"]
[Round "8"]
[TimeControl "180+2"]
[Date "2023.07.18"]
[WhiteClock "0:00:00"]
[BlackClock "0:00:05"]
[Board "99"]

1. e4 {[%clk 0:03:00]}  c5 {[%clk 0:03:00]} 2. Nf3 {[%clk 0:03:01]}  a6 {[%clk 0:03:00]} 3. c3 {[%clk 0:03:01]}  d5 {[%clk 0:03:00]} 4. exd5 {[%clk 0:03:02]}  Qxd5 {[%clk 0:03:01]} 5. d4 {[%clk 0:03:02]}  Nf6 {[%clk 0:02:58]} 6. Be2 {[%clk 0:03:03]}  cxd4 {[%clk 0:02:58]} 7. cxd4 {[%clk 0:03:03]}  e6 {[%clk 0:02:55]} 8. Nc3 {[%clk 0:03:04]}  Qd8 {[%clk 0:02:55]} 9. O-O {[%clk 0:03:05]}  Nc6 {[%clk 0:02:56]} 10. h3 {[%clk 0:03:04]}  Bd6 {[%clk 0:02:53]} 11. Bg5 {[%clk 0:03:04]}  O-O {[%clk 0:02:53]} 12. d5 {[%clk 0:02:59]}  exd5 {[%clk 0:02:25]} 13. Nxd5 {[%clk 0:02:59]}  Bh2+ {[%clk 0:02:24]} 14. Kxh2 {[%clk 0:02:52]}  Qxd5 {[%clk 0:02:19]} 15. Qxd5 {[%clk 0:02:33]}  Nxd5 {[%clk 0:02:20]} 16. Rfd1 {[%clk 0:02:33]}  Be6 {[%clk 0:02:13]} 17. Bc4 {[%clk 0:02:31]}  Nc3 {[%clk 0:02:08]} 18. bxc3 {[%clk 0:02:09]}  Bxc4 {[%clk 0:02:06]} 19. Rd7 {[%clk 0:02:09]}  b5 {[%clk 0:01:51]} 20. a4 {[%clk 0:02:09]}  f6 {[%clk 0:01:46]} 21. Bf4 {[%clk 0:02:06]}  bxa4 {[%clk 0:01:42]} 22. Rxa4 {[%clk 0:02:02]}  Bb5 {[%clk 0:01:40]} 23. Ra1 {[%clk 0:01:57]}  Ne5 {[%clk 0:01:38]} 24. Rc7 {[%clk 0:01:51]}  Nxf3+ {[%clk 0:01:36]} 25. gxf3 {[%clk 0:01:51]}  Rac8 {[%clk 0:01:33]} 26. Re1 {[%clk 0:01:49]}  Rxc7 {[%clk 0:01:29]} 27. Bxc7 {[%clk 0:01:50]}  Rc8 {[%clk 0:01:29]} 28. Re7 {[%clk 0:01:44]}  Re8 {[%clk 0:01:23]} 29. Bd6 {[%clk 0:01:44]}  Rxe7 {[%clk 0:01:19]} 30. Bxe7 {[%clk 0:01:45]}  a5 {[%clk 0:01:16]} 31. Kg3 {[%clk 0:01:43]}  Kf7 {[%clk 0:01:11]} 32. Ba3 {[%clk 0:01:42]}  Ke6 {[%clk 0:01:10]} 33. Bf8 {[%clk 0:01:35]}  Kf7 {[%clk 0:01:06]} 34. Ba3 {[%clk 0:01:32]}  Ke6 {[%clk 0:01:03]} 35. Bf8 {[%clk 0:01:29]}  a4 {[%clk 0:01:00]} 36. Kf4 {[%clk 0:01:28]}  g5+ {[%clk 0:00:57]} 37. Ke3 {[%clk 0:01:27]}  Kf5 {[%clk 0:00:51]} 38. Kd4 {[%clk 0:01:22]}  Kf4 {[%clk 0:00:47]} 39. Be7 {[%clk 0:00:46]}  Bd7 {[%clk 0:00:36]} 40. Bxf6 {[%clk 0:00:39]}  a3 {[%clk 0:00:33]} 41. c4 {[%clk 0:00:39]}  a2 {[%clk 0:00:26]} 42. Kd5 {[%clk 0:00:38]}  Bxh3 {[%clk 0:00:23]} 43. c5 {[%clk 0:00:34]}  h5 {[%clk 0:00:23]} 44. c6 {[%clk 0:00:29]}  Bc8 {[%clk 0:00:19]} 45. Kd6 {[%clk 0:00:19]}  Kf5 {[%clk 0:00:16]} 46. Bb2 {[%clk 0:00:16]}  h4 {[%clk 0:00:15]} 47. Kc7 {[%clk 0:00:16]}  Be6 {[%clk 0:00:15]} 48. Kd6 {[%clk 0:00:14]}  h3 {[%clk 0:00:14]} 49. Be5 {[%clk 0:00:11]}  h2 {[%clk 0:00:14]} 50. Bxh2 {[%clk 0:00:09]}  a1=Q {[%clk 0:00:14]} 51. Ke7 {[%clk 0:00:08]}  Qg7+ {[%clk 0:00:13]} 52. Kd8 {[%clk 0:00:08]}  Qf8+ {[%clk 0:00:11]} 53. Kc7 {[%clk 0:00:08]}  Qc8+ {[%clk 0:00:12]} 54. Kb6 {[%clk 0:00:09]}  Bd5 {[%clk 0:00:11]} 55. c7 {[%clk 0:00:09]}  Qb7+ {[%clk 0:00:12]} 56. Kc5 {[%clk 0:00:09]}  Qc6+ {[%clk 0:00:12]} 57. Kd4 {[%clk 0:00:09]}  Bxf3 {[%clk 0:00:11]} 58. Ke3 {[%clk 0:00:08]}  Qe4+ {[%clk 0:00:10]} 59. Kd2 {[%clk 0:00:09]}  Qd4+ {[%clk 0:00:09]} 60. Kc2 {[%clk 0:00:09]}  Qxf2+ {[%clk 0:00:09]} 61. Kb3 {[%clk 0:00:07]}  Bd5+ {[%clk 0:00:07]} 62. Kb4 {[%clk 0:00:07]}  Qb6+ {[%clk 0:00:06]} 63. Kc3 {[%clk 0:00:07]}  Qc5+ {[%clk 0:00:06]} 64. Kb2 {[%clk 0:00:07]}  Bb7 {[%clk 0:00:06]} 65. Kb3 {[%clk 0:00:04]}  Bc8 {[%clk 0:00:05]} 66. Bg1 {[%clk 0:00:00]}  Qxg1 {[%clk 0:00:05]} 0-1


[Site "https://www.chess.com"]

[Event "Titled Tuesday Blitz July 18 Early 2023"]
[White "Li, Hui"]
[Black "Rangel, Daniel"]
[WhiteFideId "15400310"]
[BlackFideId "2124475"]
[WhiteElo "2375"]
[BlackElo "2526"]
[Result "1-0"]
[Round "8"]
[TimeControl "180+2"]
[Date "2023.07.18"]
[WhiteClock "0:00:06"]
[BlackClock "0:00:00"]
[Board "101"]

1. e4 {[%clk 0:03:00]}  c5 {[%clk 0:02:58]} 2. Nf3 {[%clk 0:03:01]}  g6 {[%clk 0:02:58]} 3. d4 {[%clk 0:03:00]}  cxd4 {[%clk 0:02:54]} 4. Nxd4 {[%clk 0:03:01]}  Bg7 {[%clk 0:02:53]} 5. Nc3 {[%clk 0:03:01]}  Nc6 {[%clk 0:02:54]} 6. Be3 {[%clk 0:03:01]}  Nf6 {[%clk 0:02:54]} 7. Bc4 {[%clk 0:03:02]}  O-O {[%clk 0:02:54]} 8. Bb3 {[%clk 0:03:02]}  Re8 {[%clk 0:02:53]} 9. h4 {[%clk 0:02:59]}  e6 {[%clk 0:02:49]} 10. Nxc6 {[%clk 0:02:57]}  bxc6 {[%clk 0:02:45]} 11. Qd6 {[%clk 0:02:39]}  Bf8 {[%clk 0:02:40]} 12. Qd2 {[%clk 0:02:17]}  d5 {[%clk 0:02:39]} 13. O-O-O {[%clk 0:01:58]}  Ng4 {[%clk 0:02:22]} 14. Bg5 {[%clk 0:01:17]}  f6 {[%clk 0:02:20]} 15. Bf4 {[%clk 0:01:13]}  e5 {[%clk 0:02:12]} 16. exd5 {[%clk 0:01:03]}  exf4 {[%clk 0:02:10]} 17. dxc6+ {[%clk 0:01:01]}  Kg7 {[%clk 0:01:34]} 18. Qxd8 {[%clk 0:00:59]}  Rxd8 {[%clk 0:01:35]} 19. Rxd8 {[%clk 0:00:59]}  Nxf2 {[%clk 0:01:16]} 20. Re1 {[%clk 0:00:58]}  Bc5 {[%clk 0:01:12]} 21. Ree8 {[%clk 0:00:47]}  Be3+ {[%clk 0:01:07]} 22. Kb1 {[%clk 0:00:47]}  Bh3 {[%clk 0:00:19]} 23. Rxa8 {[%clk 0:00:33]}  Bxg2 {[%clk 0:00:15]} 24. Bd5 {[%clk 0:00:24]}  Bh3 {[%clk 0:00:09]} 25. c7 {[%clk 0:00:20]}  Kh6 {[%clk 0:00:05]} 26. Be6 {[%clk 0:00:16]}  f5 {[%clk 0:00:02]} 27. c8=Q {[%clk 0:00:15]}  Ne4 {[%clk 0:00:03]} 28. Nxe4 {[%clk 0:00:13]}  f3 {[%clk 0:00:03]} 29. Ng3 {[%clk 0:00:09]}  Bf4 {[%clk 0:00:00]} 30. Bxf5 {[%clk 0:00:06]} 1-0


[Site "https://www.chess.com"]

[Event "Titled Tuesday Blitz July 18 Early 2023"]
[White "ElenGajger"]
[Black "La Villa Rivas, Marlon Javier"]
[BlackFideId "3519546"]
[WhiteElo "2510"]
[BlackElo "2267"]
[Result "1-0"]
[Round "8"]
[TimeControl "180+2"]
[Date "2023.07.18"]
[WhiteClock "0:00:34"]
[BlackClock "0:01:08"]
[Board "103"]

1. e4 {[%clk 0:03:00]}  c5 {[%clk 0:02:59]} 2. Nc3 {[%clk 0:03:00]}  Nc6 {[%clk 0:02:58]} 3. Bb5 {[%clk 0:02:59]}  Nd4 {[%clk 0:02:56]} 4. Bc4 {[%clk 0:02:59]}  e6 {[%clk 0:02:55]} 5. Nf3 {[%clk 0:02:59]}  Ne7 {[%clk 0:02:53]} 6. O-O {[%clk 0:02:58]}  Nec6 {[%clk 0:02:51]} 7. Nxd4 {[%clk 0:02:55]}  cxd4 {[%clk 0:02:51]} 8. Ne2 {[%clk 0:02:54]}  Be7 {[%clk 0:02:51]} 9. d3 {[%clk 0:02:46]}  O-O {[%clk 0:02:51]} 10. c3 {[%clk 0:02:43]}  dxc3 {[%clk 0:02:50]} 11. Nxc3 {[%clk 0:02:40]}  a6 {[%clk 0:02:48]} 12. d4 {[%clk 0:02:34]}  b5 {[%clk 0:02:48]} 13. Bb3 {[%clk 0:02:33]}  Bb7 {[%clk 0:02:48]} 14. Be3 {[%clk 0:02:23]}  Rc8 {[%clk 0:02:47]} 15. Re1 {[%clk 0:02:14]}  b4 {[%clk 0:02:47]} 16. Na4 {[%clk 0:02:12]}  Na5 {[%clk 0:02:47]} 17. d5 {[%clk 0:02:06]}  Nxb3 {[%clk 0:02:46]} 18. Qxb3 {[%clk 0:02:01]}  exd5 {[%clk 0:02:46]} 19. exd5 {[%clk 0:02:00]}  Qa5 {[%clk 0:02:46]} 20. Rad1 {[%clk 0:01:58]}  Bf6 {[%clk 0:02:39]} 21. Nb6 {[%clk 0:01:51]}  Rcd8 {[%clk 0:02:30]} 22. Nc4 {[%clk 0:01:46]}  Qc7 {[%clk 0:02:29]} 23. Bb6 {[%clk 0:01:42]}  Qf4 {[%clk 0:02:24]} 24. Bxd8 {[%clk 0:01:40]}  Bxd8 {[%clk 0:02:24]} 25. Qxb4 {[%clk 0:01:34]}  Ba8 {[%clk 0:02:20]} 26. b3 {[%clk 0:01:33]}  Bc7 {[%clk 0:02:07]} 27. g3 {[%clk 0:01:28]}  Qf3 {[%clk 0:02:05]} 28. Qc5 {[%clk 0:01:07]}  Bd8 {[%clk 0:01:49]} 29. h4 {[%clk 0:00:59]}  f5 {[%clk 0:01:30]} 30. Ne5 {[%clk 0:00:57]}  Qh5 {[%clk 0:01:30]} 31. Nxd7 {[%clk 0:00:56]}  Re8 {[%clk 0:01:17]} 32. Rxe8+ {[%clk 0:00:50]}  Qxe8 {[%clk 0:01:18]} 33. Nb6 {[%clk 0:00:41]}  f4 {[%clk 0:01:17]} 34. Nxa8 {[%clk 0:00:39]}  fxg3 {[%clk 0:01:16]} 35. fxg3 {[%clk 0:00:37]}  Qe2 {[%clk 0:01:15]} 36. Rf1 {[%clk 0:00:36]}  Bf6 {[%clk 0:01:09]} 37. Qc8+ {[%clk 0:00:34]}  Kf7 {[%clk 0:01:10]} 38. Qe6+ {[%clk 0:00:34]}  Qxe6 {[%clk 0:01:10]} 39. dxe6+ {[%clk 0:00:35]}  Kxe6 {[%clk 0:01:08]} 40. Kg2 {[%clk 0:00:34]} 1-0


[Site "https://www.chess.com"]

[Event "Titled Tuesday Blitz July 18 Early 2023"]
[White "Vivas Zamora, Fabian Ernesto"]
[Black "NicolaiMaxime"]
[WhiteFideId "3902480"]
[WhiteElo "2417"]
[BlackElo "2585"]
[Result "1-0"]
[Round "8"]
[TimeControl "180+2"]
[Date "2023.07.18"]
[WhiteClock "0:00:11"]
[BlackClock "0:00:13"]
[Board "106"]

1. e4 {[%clk 0:02:57]}  c5 {[%clk 0:02:59]} 2. Nc3 {[%clk 0:02:54]}  Nc6 {[%clk 0:02:59]} 3. Bb5 {[%clk 0:02:54]}  g6 {[%clk 0:02:56]} 4. Bxc6 {[%clk 0:02:53]}  dxc6 {[%clk 0:02:57]} 5. d3 {[%clk 0:02:54]}  Bg7 {[%clk 0:02:57]} 6. f4 {[%clk 0:02:55]}  h5 {[%clk 0:02:55]} 7. Be3 {[%clk 0:02:54]}  Bg4 {[%clk 0:02:54]} 8. Qd2 {[%clk 0:02:53]}  h4 {[%clk 0:02:54]} 9. h3 {[%clk 0:02:47]}  Bd7 {[%clk 0:02:53]} 10. Bxc5 {[%clk 0:02:46]}  Nf6 {[%clk 0:02:50]} 11. Nf3 {[%clk 0:02:44]}  Nh5 {[%clk 0:02:48]} 12. Bf2 {[%clk 0:02:39]}  Qa5 {[%clk 0:02:39]} 13. Bxh4 {[%clk 0:02:28]}  Bxc3 {[%clk 0:02:19]} 14. bxc3 {[%clk 0:02:22]}  O-O-O {[%clk 0:02:10]} 15. Bf2 {[%clk 0:02:10]}  f6 {[%clk 0:01:49]} 16. c4 {[%clk 0:01:47]}  Qxd2+ {[%clk 0:01:41]} 17. Kxd2 {[%clk 0:01:42]}  Nxf4 {[%clk 0:01:42]} 18. Rag1 {[%clk 0:01:27]}  e5 {[%clk 0:01:27]} 19. Bxa7 {[%clk 0:01:24]}  Kc7 {[%clk 0:01:27]} 20. Be3 {[%clk 0:01:16]}  Ne6 {[%clk 0:01:24]} 21. Rb1 {[%clk 0:01:14]}  Ra8 {[%clk 0:01:22]} 22. Bb6+ {[%clk 0:01:10]}  Kc8 {[%clk 0:01:21]} 23. c5 {[%clk 0:00:39]}  Rxa2 {[%clk 0:01:19]} 24. Ra1 {[%clk 0:00:39]}  Ra6 {[%clk 0:01:16]} 25. h4 {[%clk 0:00:25]}  Nf4 {[%clk 0:01:13]} 26. g3 {[%clk 0:00:23]}  Nh5 {[%clk 0:01:12]} 27. Rxa6 {[%clk 0:00:23]}  bxa6 {[%clk 0:01:11]} 28. Rg1 {[%clk 0:00:23]}  Be6 {[%clk 0:01:04]} 29. Ke3 {[%clk 0:00:23]}  Kd7 {[%clk 0:01:03]} 30. Nd2 {[%clk 0:00:19]}  Ra8 {[%clk 0:01:00]} 31. Nb3 {[%clk 0:00:15]}  f5 {[%clk 0:00:59]} 32. Na5 {[%clk 0:00:11]}  f4+ {[%clk 0:00:54]} 33. gxf4 {[%clk 0:00:11]}  Nxf4 {[%clk 0:00:55]} 34. c3 {[%clk 0:00:09]}  Rh8 {[%clk 0:00:47]} 35. d4 {[%clk 0:00:09]}  Rxh4 {[%clk 0:00:48]} 36. dxe5 {[%clk 0:00:09]}  Bh3 {[%clk 0:00:33]} 37. Rd1+ {[%clk 0:00:09]}  Ke7 {[%clk 0:00:33]} 38. Nxc6+ {[%clk 0:00:08]}  Kf7 {[%clk 0:00:31]} 39. Nd8+ {[%clk 0:00:08]}  Ke8 {[%clk 0:00:29]} 40. c6 {[%clk 0:00:08]}  Ng2+ {[%clk 0:00:24]} 41. Kf3 {[%clk 0:00:08]}  Bg4+ {[%clk 0:00:24]} 42. Kg3 {[%clk 0:00:08]}  Bxd1 {[%clk 0:00:24]} 43. c7 {[%clk 0:00:03]}  Rg4+ {[%clk 0:00:24]} 44. Kh3 {[%clk 0:00:03]}  Nf4+ {[%clk 0:00:23]} 45. Kh2 {[%clk 0:00:03]}  Rg2+ {[%clk 0:00:23]} 46. Kh1 {[%clk 0:00:03]}  Kd7 {[%clk 0:00:17]} 47. e6+ {[%clk 0:00:02]}  Kc8 {[%clk 0:00:10]} 48. Nc6 {[%clk 0:00:03]}  Bf3 {[%clk 0:00:09]} 49. Ne7+ {[%clk 0:00:03]}  Kb7 {[%clk 0:00:08]} 50. c8=Q+ {[%clk 0:00:04]}  Kxb6 {[%clk 0:00:09]} 51. Qb8+ {[%clk 0:00:04]}  Ka5 {[%clk 0:00:09]} 52. Qxf4 {[%clk 0:00:05]}  Rf2+ {[%clk 0:00:05]} 53. Kg1 {[%clk 0:00:05]}  Rg2+ {[%clk 0:00:05]} 54. Kf1 {[%clk 0:00:05]}  Rc2 {[%clk 0:00:05]} 55. Qxf3 {[%clk 0:00:05]}  Ka4 {[%clk 0:00:06]} 56. Qd3 {[%clk 0:00:06]}  Kb3 {[%clk 0:00:06]} 57. Qxc2+ {[%clk 0:00:06]}  Kxc2 {[%clk 0:00:07]} 58. Nc6 {[%clk 0:00:07]}  a5 {[%clk 0:00:07]} 59. e7 {[%clk 0:00:07]}  a4 {[%clk 0:00:08]} 60. e8=Q {[%clk 0:00:08]}  a3 {[%clk 0:00:09]} 61. Nb4+ {[%clk 0:00:09]}  Kb3 {[%clk 0:00:10]} 62. Qa4+ {[%clk 0:00:09]}  Kxa4 {[%clk 0:00:10]} 63. e5 {[%clk 0:00:09]}  Kb3 {[%clk 0:00:10]} 64. e6 {[%clk 0:00:09]}  Kxc3 {[%clk 0:00:11]} 65. Na2+ {[%clk 0:00:09]}  Kb2 {[%clk 0:00:11]} 66. e7 {[%clk 0:00:10]}  Kxa2 {[%clk 0:00:11]} 67. e8=Q {[%clk 0:00:10]}  Ka1 {[%clk 0:00:12]} 68. Qe5+ {[%clk 0:00:09]}  Ka2 {[%clk 0:00:13]} 69. Qd5+ {[%clk 0:00:09]}  Kb2 {[%clk 0:00:13]} 70. Qd4+ {[%clk 0:00:10]}  Ka2 {[%clk 0:00:14]} 71. Qb4 {[%clk 0:00:09]}  g5 {[%clk 0:00:13]} 72. Ke2 {[%clk 0:00:09]}  g4 {[%clk 0:00:13]} 73. Kd2 {[%clk 0:00:10]}  g3 {[%clk 0:00:14]} 74. Kc2 {[%clk 0:00:11]}  g2 {[%clk 0:00:13]} 75. Qb1# {[%clk 0:00:11]} 1-0


[Site "https://www.chess.com"]

[Event "Titled Tuesday Blitz July 18 Early 2023"]
[White "Melikhov, Evgeny V."]
[Black "Ganiev, Roman"]
[WhiteFideId "4122046"]
[BlackFideId "4131452"]
[WhiteElo "2411"]
[BlackElo "2546"]
[Result "0-1"]
[Round "8"]
[TimeControl "180+2"]
[Date "2023.07.18"]
[WhiteClock "0:00:02"]
[BlackClock "0:00:15"]
[Board "111"]

1. d4 {[%clk 0:03:00]}  Nf6 {[%clk 0:02:59]} 2. c4 {[%clk 0:03:00]}  e6 {[%clk 0:03:00]} 3. Nc3 {[%clk 0:03:01]}  Bb4 {[%clk 0:02:59]} 4. Qc2 {[%clk 0:03:01]}  O-O {[%clk 0:02:59]} 5. e4 {[%clk 0:03:00]}  d5 {[%clk 0:02:57]} 6. e5 {[%clk 0:03:00]}  Ne4 {[%clk 0:02:57]} 7. Bd3 {[%clk 0:02:59]}  c5 {[%clk 0:02:57]} 8. Nf3 {[%clk 0:02:58]}  cxd4 {[%clk 0:02:54]} 9. Nxd4 {[%clk 0:02:58]}  Nd7 {[%clk 0:02:55]} 10. Bf4 {[%clk 0:02:58]}  Qh4 {[%clk 0:02:54]} 11. g3 {[%clk 0:02:57]}  Qh5 {[%clk 0:02:55]} 12. O-O {[%clk 0:02:55]}  g5 {[%clk 0:02:54]} 13. cxd5 {[%clk 0:02:55]}  gxf4 {[%clk 0:02:42]} 14. Nxe4 {[%clk 0:02:34]}  exd5 {[%clk 0:02:28]} 15. Nf6+ {[%clk 0:02:17]}  Nxf6 {[%clk 0:02:28]} 16. exf6 {[%clk 0:02:18]}  Bh3 {[%clk 0:02:23]} 17. Bf5 {[%clk 0:01:41]}  Bxf1 {[%clk 0:02:04]} 18. Rxf1 {[%clk 0:01:34]}  Qh6 {[%clk 0:02:04]} 19. Qe2 {[%clk 0:01:19]}  Qxf6 {[%clk 0:01:50]} 20. Qh5 {[%clk 0:01:19]}  h6 {[%clk 0:01:51]} 21. Nf3 {[%clk 0:00:40]}  Kh8 {[%clk 0:01:26]} 22. gxf4 {[%clk 0:00:36]}  Bd6 {[%clk 0:01:16]} 23. Kh1 {[%clk 0:00:35]}  Bxf4 {[%clk 0:01:13]} 24. Rg1 {[%clk 0:00:34]}  Rg8 {[%clk 0:01:13]} 25. Bd3 {[%clk 0:00:14]}  Rxg1+ {[%clk 0:01:10]} 26. Kxg1 {[%clk 0:00:14]}  Rg8+ {[%clk 0:01:10]} 27. Kf1 {[%clk 0:00:14]}  Qxb2 {[%clk 0:00:45]} 28. Qf5 {[%clk 0:00:11]}  Qc1+ {[%clk 0:00:45]} 29. Ne1 {[%clk 0:00:11]}  Rg7 {[%clk 0:00:37]} 30. Ke2 {[%clk 0:00:05]}  Qb2+ {[%clk 0:00:19]} 31. Nc2 {[%clk 0:00:05]}  Qe5+ {[%clk 0:00:20]} 32. Qxe5 {[%clk 0:00:04]}  Bxe5 {[%clk 0:00:21]} 33. Kf3 {[%clk 0:00:03]}  Bxh2 {[%clk 0:00:20]} 34. Bf5 {[%clk 0:00:01]}  Be5 {[%clk 0:00:20]} 35. Ne3 {[%clk 0:00:01]}  d4 {[%clk 0:00:20]} 36. Nd5 {[%clk 0:00:02]}  f6 {[%clk 0:00:19]} 37. Ke4 {[%clk 0:00:02]}  Rg2 {[%clk 0:00:19]} 38. f4 {[%clk 0:00:02]}  Bd6 {[%clk 0:00:16]} 39. Kxd4 {[%clk 0:00:02]}  Rd2+ {[%clk 0:00:15]} 40. Ke4 {[%clk 0:00:02]}  Rxa2 {[%clk 0:00:15]} 41. Be6 {[%clk 0:00:02]}  Ra4+ {[%clk 0:00:15]} 42. Kf5 {[%clk 0:00:02]}  Kg7 {[%clk 0:00:15]} 43. Nxf6 {[%clk 0:00:02]}  Rxf4# {[%clk 0:00:15]} 0-1


[Site "https://www.chess.com"]